bitfinex-derivatives/quotes_BNBF0:USTF0_20250413
["timestamp","ask_amount","ask_price","bid_price","bid_amount"]
[1744535094635,0.3097231,593.95,593.02,1.296]
[1744535094836,0.3097231,594.0,593.02,1.296]
[1744535095036,0.29326996,593.95,593.02,2.102]
[1744535095231,0.3097231,593.94,593.02,2.102]
[1744535095736,0.29326996,593.95,593.02,2.102]
[1744535095937,0.30971337,593.94,593.02,2.102]
[1744535097130,0.29327737,593.93,593.02,2.102]
[1744535097338,0.60299074,593.93,593.02,2.102]
[1744535097638,0.30971337,593.92,593.02,2.102]
[1744535098838,0.29327737,593.93,593.02,2.102]
[1744535099037,0.30971797,593.92,593.02,2.102]
[1744535100035,0.30971797,594.0,593.02,2.102]
[1744535100236,0.29327985,593.91,593.02,2.102]
[1744535100539,0.33669466,594.01,593.02,2.102]
[1744535100740,0.30971917,594.0,593.02,2.102]
[1744535101540,0.33669466,594.01,593.02,2.102]
[1744535101735,0.29326996,593.99,593.02,2.102]
[1744535101933,0.30972028,593.98,593.02,2.102]
[1744535102938,0.30972028,594.0,593.02,2.102]
[1744535103240,0.3097215,593.99,593.02,2.102]
[1744535103443,0.3097215,594.0,593.02,2.102]
[1744535103640,0.3097215,593.99,593.02,2.102]
[1744535103834,0.3097215,593.98,593.02,2.102]
[1744535104036,0.29326996,593.98,593.02,2.102]
[1744535104238,0.3097215,593.97,593.02,2.102]
[1744535106044,0.3097215,594.0,593.02,2.102]
[1744535106244,0.3097215,593.99,593.02,2.102]
[1744535106444,0.3097215,594.0,593.02,2.102]
[1744535106645,0.3097215,593.98,593.02,2.102]
[1744535106840,0.3097215,593.97,593.02,2.102]
[1744535107041,0.3097215,593.96,593.02,2.102]
[1744535109046,0.3097215,593.95,593.02,2.102]
[1744535109347,0.3097215,593.94,593.02,2.102]
[1744535109545,0.29326996,593.95,593.02,2.102]
[1744535109742,0.30971171,593.93,593.02,2.102]
[1744535109941,0.30971171,593.92,593.02,2.102]
[1744535110140,0.30971171,593.91,593.02,2.102]
[1744535110346,0.30971171,593.94,593.02,2.102]
[1744535110547,0.30971171,593.93,593.02,2.102]
[1744535110746,0.30971171,593.94,593.03,0.30486052]
[1744535110947,0.30971171,593.93,593.03,0.30486052]
[1744535111149,0.29326996,593.95,593.02,1.54]
[1744535111351,0.30969443,593.94,593.03,0.30486616]
[1744535112050,0.30969443,593.93,593.03,0.30486616]
[1744535112349,0.30969443,593.92,593.03,0.30486616]
[1744535112650,0.30969443,593.96,593.03,0.30486616]
[1744535112851,0.30969443,593.95,593.03,0.30486616]
[1744535113150,0.30969443,593.94,593.03,0.30486616]
[1744535113350,0.30969443,593.96,593.03,0.30486616]
[1744535113546,0.30969443,593.95,593.03,0.30486616]
[1744535113751,0.30969443,593.96,593.03,0.30486616]
[1744535114048,0.30969443,593.95,593.03,0.30486616]
[1744535114245,0.30969443,593.96,593.03,0.30486616]
[1744535114450,0.30968838,593.95,593.04,0.30488265]
[1744535114647,0.30968838,593.96,593.03,0.30488265]
[1744535114952,0.30968838,593.95,593.04,1.14788265]
[1744535115154,0.30968838,594.0,593.04,0.843]
[1744535115347,0.30968838,593.99,593.04,0.843]
[1744535115753,0.30968838,593.98,593.04,0.843]
[1744535116055,0.29325266,593.98,593.04,0.843]
[1744535116354,0.30968838,593.97,593.04,0.843]
[1744535118055,0.30968838,594.0,593.04,0.843]
[1744535118959,0.30968838,594.0,593.04,1.474]
[1744535119156,0.60295162,593.99,593.04,1.474]
[1744535119351,0.30969772,593.98,593.04,2.07]
[1744535120751,0.30970823,593.97,593.04,2.632]
[1744535120952,0.30970823,593.98,593.04,2.632]
[1744535121151,0.30970823,593.97,593.04,2.632]
[1744535121350,0.30970823,594.0,593.04,2.632]
[1744535121552,0.30970823,593.96,593.04,2.632]
[1744535121757,0.30970823,593.99,593.04,2.632]
[1744535121958,0.30970823,593.98,593.04,2.632]
[1744535122151,0.29326502,593.95,593.04,2.632]
[1744535122353,0.30970823,593.94,593.04,2.632]
[1744535125456,0.29326502,593.95,593.04,2.632]
[1744535125657,0.309727,593.93,593.04,2.632]
[1744535125856,0.309727,593.92,593.04,2.632]
[1744535126060,0.309727,593.94,593.04,2.632]
[1744535126257,0.309727,593.93,593.04,2.632]
[1744535126556,0.309727,593.92,593.04,2.632]
[1744535126766,0.309727,593.91,593.04,2.632]
[1744535126960,0.33669466,594.01,593.04,2.632]
[1744535127161,0.30972273,594.0,593.04,2.632]
[1744535128068,0.29326502,593.99,593.04,2.632]
[1744535128262,0.30972273,593.98,593.04,2.632]
[1744535130069,0.30972273,594.0,593.04,2.632]
[1744535130270,0.30972033,593.99,593.04,2.632]
[1744535130470,0.30972033,594.0,593.04,2.632]
[1744535131072,0.29326502,593.99,593.04,2.632]
[1744535131271,0.30972033,593.98,593.04,2.632]
[1744535131469,0.30972033,593.98,593.04,2.036]
[1744535133074,0.30972033,594.0,593.04,2.036]
[1744535133374,0.30972036,593.99,593.04,2.036]
[1744535133574,0.30972036,593.98,593.04,2.036]
[1744535133771,0.30972036,593.97,593.04,2.036]
[1744535133971,0.30972036,593.96,593.04,2.036]
[1744535134278,0.30972036,593.95,593.04,2.036]
[1744535134879,0.29326502,593.96,593.04,2.036]
[1744535135079,0.3097204,593.95,593.04,2.036]
[1744535137276,0.3097204,593.95,593.04,1.193]
[1744535139081,0.6029916,593.94,593.04,1.193]
[1744535139280,0.3097204,593.93,593.04,1.193]
[1744535139981,0.3097204,593.93,593.04,0.562]
[1744535140781,0.3097204,593.93,592.99,0.33727381]
[1744535141976,0.3097204,594.0,592.99,0.33727381]
[1744535142882,0.33669466,594.01,592.99,0.33727381]
[1744535143182,0.29330209,593.99,592.99,0.33727381]
[1744535143378,0.30974315,593.98,592.99,0.33727381]
[1744535144383,0.29330209,593.99,592.99,0.33727381]
[1744535144581,0.30974413,593.98,592.99,0.33727381]
[1744535144980,0.30974413,594.0,592.99,0.33727381]
[1744535145180,0.30974413,593.99,592.99,0.33727381]
[1744535145376,0.30974413,594.0,592.99,0.33727381]
[1744535145577,0.30974413,593.99,592.99,0.33727381]
[1744535145782,0.30974413,594.0,592.99,0.33727381]
[1744535146079,0.29330209,593.98,592.99,0.33727381]
[1744535146378,0.30974413,593.97,592.99,0.33727381]
[1744535147984,0.60304869,593.96,592.99,0.33727381]
[1744535148183,0.30974413,593.95,592.99,0.33727381]
[1744535149285,0.29330456,593.96,592.99,0.33727381]
[1744535149486,0.30973703,593.94,592.99,0.33727381]
[1744535149687,0.30973703,593.93,592.99,0.33727381]
[1744535149986,0.30973703,593.95,592.99,0.33727381]
[1744535150182,0.30973703,593.94,592.99,0.33727381]
[1744535150380,0.30973703,593.95,592.99,0.33727381]
[1744535150580,0.30973703,593.94,592.99,0.33727381]
[1744535150783,0.30973703,593.93,592.99,0.33727381]
[1744535150984,0.30973703,594.0,592.99,0.33727381]
[1744535151280,0.29329344,593.93,592.99,0.33727381]
[1744535151483,0.30973703,593.92,592.99,0.33727381]
[1744535151686,0.30973703,594.0,592.99,0.33727381]
[1744535152181,0.29328726,593.99,592.99,0.33727381]
[1744535152387,0.30973703,593.98,592.99,0.33727381]
[1744535152687,0.30971007,593.97,592.99,0.33727381]
[1744535152883,0.30971007,593.98,592.99,0.33727381]
[1744535153983,0.30971007,594.0,592.99,0.33727381]
[1744535154181,0.33669466,594.01,592.99,0.33727381]
[1744535154386,0.30970592,594.0,592.99,0.33727381]
[1744535155186,0.29328726,593.99,592.99,0.33727381]
[1744535155383,0.30970592,593.98,592.99,0.33727381]
[1744535156987,0.30970592,594.0,592.99,0.33727381]
[1744535157287,0.2932712,593.97,592.99,0.33727381]
[1744535157487,0.30970592,593.96,592.99,0.33727381]
[1744535158388,0.2932712,593.97,592.99,0.33727381]
[1744535159691,0.33669466,594.01,592.99,0.33727381]
[1744535159891,0.30972541,594.0,592.99,0.33727381]
[1744535160091,0.29328108,593.96,592.99,0.33727381]
[1744535163095,0.29328108,593.95,592.99,0.33727381]
[1744535165996,0.33669466,594.01,592.99,0.33727381]
[1744535166395,0.30972161,594.0,592.99,0.33727381]
[1744535167093,0.29328108,593.99,592.99,0.33727381]
[1744535167293,0.30972161,593.98,592.99,0.33727381]
[1744535168397,0.30972161,593.98,592.99,0.97427381]
[1744535168998,0.30972161,594.0,592.99,0.97427381]
[1744535169198,0.29327614,593.97,592.99,0.97427381]
[1744535169699,0.3097226,593.96,592.99,0.97427381]
[1744535171102,0.3097226,593.96,593.0,0.817]
[1744535172005,0.3097226,594.0,593.0,0.817]
[1744535172207,0.3097226,593.99,593.0,0.817]
[1744535172405,0.3097226,594.0,593.0,0.817]
[1744535172603,0.30972779,593.99,593.0,0.817]
[1744535172906,0.30972779,593.98,593.0,0.817]
[1744535173106,0.2932749,593.98,593.0,0.817]
[1744535173306,0.30972779,593.97,593.0,0.817]
[1744535175007,0.30972779,594.0,593.0,0.817]
[1744535175908,0.33669466,594.01,593.0,0.817]
[1744535176115,0.2932749,593.99,593.0,0.817]
[1744535176402,0.30971875,593.98,593.0,0.817]
[1744535177609,0.30971875,593.98,593.01,0.605]
[1744535178007,0.30971875,594.0,593.01,0.605]
[1744535179010,0.33669466,594.01,593.01,0.605]
[1744535179207,0.29327367,593.99,593.01,0.605]
[1744535179408,0.30971701,593.98,593.01,0.605]
[1744535180811,0.33669466,594.01,593.01,0.605]
[1744535182112,0.29322424,594.0,593.01,0.605]
[1744535183814,0.33669466,594.01,593.01,0.605]
[1744535184215,0.29325637,593.99,593.01,0.605]
[1744535186909,0.33669466,594.01,593.01,0.605]
[1744535188021,0.29317484,594.0,593.01,0.605]
[1744535189822,0.33669466,594.01,593.01,0.605]
[1744535190724,0.30974122,594.0,593.01,0.605]
[1744535191121,0.60293211,594.0,593.01,0.605]
[1744535191416,0.30974122,593.99,593.01,0.605]
[1744535191817,0.30974122,593.99,593.02,0.782]
[1744535193021,0.30974122,594.0,593.02,0.782]
[1744535193218,0.33669466,594.01,593.02,0.782]
[1744535193219,0.30974298,593.99,593.02,0.782]
[1744535193419,0.30974298,594.0,593.02,0.782]
[1744535193617,0.30974298,593.98,593.02,0.782]
[1744535193822,0.30974298,593.97,593.02,0.782]
[1744535194018,0.30974298,594.0,593.02,0.782]
[1744535194217,0.30974298,593.96,593.02,0.782]
[1744535194424,0.30974298,593.95,593.02,0.782]
[1744535194619,0.29327243,593.97,593.02,0.782]
[1744535194918,0.30973661,593.96,593.02,0.782]
[1744535196025,0.30973661,594.0,593.02,0.782]
[1744535196324,0.29327737,593.95,593.02,0.782]
[1744535196523,0.30974143,593.94,593.02,0.782]
[1744535199127,0.30974143,593.93,593.02,0.782]
[1744535199324,0.30974143,594.0,593.02,1.51]
[1744535199527,0.30974265,593.99,593.02,1.51]
[1744535199827,0.30974265,594.0,593.02,1.51]
[1744535200029,0.30974265,593.99,593.02,1.51]
[1744535200227,0.29327243,593.98,593.02,1.51]
[1744535200627,0.30974265,593.97,593.02,1.51]
[1744535200928,0.29327243,593.98,593.02,1.51]
[1744535201129,0.30973866,593.97,593.02,1.51]
[1744535202023,0.30973866,594.0,593.02,2.282]
[1744535202223,0.30973866,593.99,593.02,2.282]
[1744535202428,0.30973866,594.0,593.02,2.282]
[1744535202728,0.30973866,593.99,593.02,2.282]
[1744535202925,0.30973866,594.0,593.02,3.172]
[1744535203129,0.60301109,593.99,593.02,3.172]
[1744535203332,0.30973866,593.98,593.02,3.172]
[1744535204129,0.30973866,593.98,593.02,3.953]
[1744535205233,0.30973866,593.97,593.02,3.953]
[1744535205437,0.30973866,594.0,593.02,3.953]
[1744535205634,0.30973866,593.96,593.02,3.953]
[1744535205834,0.30973866,593.95,593.02,3.953]
[1744535206034,0.30973866,594.0,593.02,4.513]
[1744535206235,0.29327243,593.95,593.02,4.513]
[1744535206540,0.30973866,593.94,593.02,4.513]
[1744535208731,0.29327243,593.95,593.02,4.513]
[1744535208930,0.30973828,593.94,593.02,4.513]
[1744535210537,0.30973793,593.93,593.02,4.513]
[1744535210739,0.30973793,593.94,593.02,4.513]
[1744535211139,0.30973793,594.0,593.02,4.513]
[1744535211332,0.29327985,593.93,593.02,4.513]
[1744535211534,0.30973793,593.92,593.02,4.513]
[1744535211736,0.30973793,594.0,593.02,4.513]
[1744535211934,0.33669466,594.01,593.02,4.513]
[1744535212141,0.30973742,594.0,593.02,4.513]
[1744535212340,0.29327243,593.99,593.02,4.513]
[1744535212640,0.30973742,593.98,593.02,4.513]
[1744535214033,0.30973742,593.97,593.02,4.513]
[1744535214236,0.2932749,593.97,593.02,4.513]
[1744535214435,0.30973783,593.96,593.02,4.513]
[1744535215246,0.2932749,593.97,593.02,4.513]
[1744535215444,0.30974196,593.95,593.02,4.513]
[1744535215739,0.30974196,593.94,593.02,4.513]
[1744535216036,0.30974196,593.93,593.02,4.513]
[1744535216236,0.30974196,593.92,593.02,4.513]
[1744535216437,0.30974196,593.96,593.02,4.513]
[1744535217040,0.30974196,593.95,593.02,4.513]
[1744535217241,0.30974196,594.0,593.02,4.513]
[1744535217441,0.30974196,593.99,593.02,4.513]
[1744535217635,0.30974196,594.0,593.02,4.513]
[1744535218042,0.29328232,593.99,593.02,4.513]
[1744535218243,0.30974196,593.98,593.02,4.513]
[1744535219940,0.30974196,593.99,593.02,4.513]
[1744535220139,0.30974196,593.98,593.02,4.513]
[1744535220342,0.29328355,593.97,593.02,4.513]
[1744535220743,0.30974196,593.96,593.02,4.513]
[1744535221150,0.29328355,593.97,593.02,4.513]
[1744535221351,0.30976585,593.96,593.02,4.513]
[1744535223141,0.30976585,594.0,593.02,4.513]
[1744535223346,0.30976585,593.99,593.02,4.513]
[1744535223541,0.30976585,593.98,593.02,4.513]
[1744535223743,0.30976585,594.0,593.02,4.513]
[1744535223942,0.30976585,593.99,593.02,4.513]
[1744535224247,0.30976585,593.98,593.02,4.513]
[1744535226041,0.30976585,594.0,593.02,4.513]
[1744535226247,0.30976585,593.99,593.02,4.513]
[1744535226450,0.30976585,594.0,593.02,4.513]
[1744535227143,0.29328232,593.99,593.02,4.513]
[1744535227342,0.30976585,593.98,593.02,4.513]
[1744535227548,0.30973597,593.97,593.02,4.513]
[1744535227747,0.30973597,593.96,593.02,4.513]
[1744535227947,0.30973597,593.98,593.02,4.513]
[1744535228153,0.30973597,593.97,593.02,4.513]
[1744535228345,0.30973597,593.98,593.02,4.513]
[1744535228550,0.30973597,593.97,593.02,4.513]
[1744535228852,0.30973597,593.96,593.02,4.513]
[1744535229147,0.30972942,593.95,593.02,4.513]
[1744535229351,0.30972942,593.94,593.02,4.513]
[1744535229552,0.30972942,594.0,593.02,4.513]
[1744535229752,0.30972942,593.99,593.02,4.513]
[1744535229945,0.30972942,594.0,593.02,4.513]
[1744535230151,0.60299444,593.99,593.02,4.513]
[1744535230453,0.30972942,593.98,593.02,4.513]
[1744535230755,0.30973544,593.97,593.02,4.513]
[1744535230949,0.30973544,593.98,593.02,4.513]
[1744535231152,0.30973544,593.97,593.02,4.513]
[1744535231452,0.30973544,593.96,593.02,4.513]
[1744535231651,0.30973544,593.98,593.02,4.513]
[1744535231851,0.30973544,593.97,593.02,4.513]
[1744535232054,0.30973544,594.0,593.02,4.513]
[1744535232256,0.30973544,593.99,593.02,4.513]
[1744535232554,0.30973544,593.98,593.02,4.513]
[1744535232854,0.30973544,594.0,593.02,4.513]
[1744535233050,0.30973544,593.99,593.02,4.513]
[1744535233255,0.29326502,593.97,593.02,4.513]
[1744535233455,0.30973544,593.96,593.02,4.513]
[1744535233755,0.29326502,593.97,593.02,4.513]
[1744535233956,0.3097366,593.96,593.02,4.513]
[1744535235151,0.3097366,594.0,593.02,4.513]
[1744535235453,0.30973902,593.99,593.02,4.513]
[1744535235656,0.30973902,594.0,593.02,4.513]
[1744535235850,0.30973902,593.99,593.02,4.513]
[1744535236056,0.30973902,594.0,593.02,4.513]
[1744535236357,0.60300404,593.99,593.02,4.513]
[1744535236555,0.30973902,593.98,593.02,4.513]
[1744535236951,0.29326502,593.99,593.02,4.513]
[1744535237153,0.30973655,593.98,593.02,4.513]
[1744535238053,0.30973655,594.0,593.02,4.513]
[1744535238255,0.30973655,593.99,593.02,4.513]
[1744535238559,0.30973655,593.98,593.02,4.513]
[1744535238857,0.30973655,593.97,593.02,4.513]
[1744535239053,0.30973655,593.96,593.02,4.513]
[1744535239259,0.29326502,593.97,593.02,4.513]
[1744535239456,0.30973655,593.96,593.02,4.513]
[1744535241161,0.30973655,594.0,593.02,4.513]
[1744535241361,0.30973655,593.99,593.02,4.513]
[1744535241562,0.30973655,594.0,593.02,4.513]
[1744535241760,0.30973655,593.98,593.02,4.513]
[1744535241960,0.30973655,593.97,593.02,4.513]
[1744535242161,0.29327737,593.99,593.02,4.513]
[1744535242361,0.30973655,593.98,593.02,4.513]
[1744535243163,0.29327737,593.99,593.02,4.513]
[1744535243463,0.30975948,593.98,593.02,4.513]
[1744535244063,0.30975948,594.0,593.02,4.513]
[1744535244664,0.33669466,594.01,593.02,4.513]
[1744535244863,0.30975927,594.0,593.02,4.513]
[1744535245260,0.60299834,594.0,593.02,4.513]
[1744535245459,0.30975927,593.99,593.02,4.513]
[1744535247065,0.29327861,593.98,593.02,4.513]
[1744535247460,0.30975927,593.97,593.02,4.513]
[1744535247867,0.29327861,593.98,593.02,4.513]
[1744535248067,0.30976152,593.97,593.02,4.513]
[1744535250070,0.6030426,593.96,593.02,4.513]
[1744535250269,0.30976152,593.95,593.02,4.513]
[1744535253075,0.29328355,593.94,593.02,4.513]
[1744535253277,0.30976152,593.93,593.02,4.513]
[1744535255876,0.30974308,593.92,593.02,4.513]
[1744535256075,0.30974308,594.0,593.02,4.513]
[1744535257179,0.29327737,593.99,593.02,4.513]
[1744535257574,0.30974249,593.98,593.02,4.513]
[1744535259074,0.29327985,593.97,593.02,4.513]
[1744535259472,0.30974249,593.96,593.02,4.513]
[1744535260483,0.29327985,593.97,593.02,4.513]
[1744535260783,0.30974649,593.96,593.02,4.513]
[1744535261989,0.30974649,594.0,593.02,4.513]
[1744535262290,0.29328232,593.95,593.02,4.513]
[1744535262488,0.30974649,593.94,593.02,4.513]
[1744535263689,0.29328232,593.95,593.02,4.513]
[1744535263886,0.30974337,593.94,593.02,4.513]
[1744535265090,0.30974337,594.0,593.02,4.513]
[1744535266093,0.29327737,593.99,593.02,4.513]
[1744535266292,0.30974337,593.98,593.02,4.513]
[1744535267987,0.30974337,594.0,593.02,4.513]
[1744535268192,0.29327985,593.97,593.02,4.513]
[1744535268692,0.30974408,593.96,593.02,4.513]
[1744535269992,0.29327985,593.97,593.02,4.513]
[1744535270192,0.30974567,593.96,593.02,4.513]
[1744535271193,0.30974567,594.0,593.02,4.513]
[1744535272095,0.29328232,593.99,593.02,4.513]
[1744535272491,0.30974567,593.98,593.02,4.513]
[1744535274895,0.29328232,593.99,593.02,4.513]
[1744535275096,0.30974559,593.98,593.02,4.513]
[1744535276495,0.29328232,593.99,593.02,4.513]
[1744535276697,0.30974419,593.98,593.02,4.513]
[1744535277094,0.29327985,593.98,593.02,4.513]
[1744535277294,0.30974419,593.97,593.02,4.513]
[1744535278095,0.29327985,593.98,593.02,4.513]
[1744535278296,0.30974165,593.97,593.02,4.513]
[1744535279198,0.29327985,593.98,593.02,4.513]
[1744535279393,0.30973996,593.97,593.02,4.513]
[1744535280098,0.30973996,594.0,593.02,4.513]
[1744535280396,0.30973996,593.99,593.02,4.513]
[1744535280599,0.30973996,594.0,593.02,4.513]
[1744535280797,0.30973996,593.98,593.02,4.513]
[1744535280993,1.62076632,594.01,593.02,4.513]
[1744535281193,0.29327985,593.99,593.02,4.513]
[1744535281394,0.30974433,593.98,593.02,4.513]
[1744535283103,0.29328232,593.97,593.02,4.513]
[1744535283300,0.60302665,593.97,593.02,4.513]
[1744535283494,0.30974433,593.96,593.02,4.513]
[1744535286102,0.30974433,594.0,593.02,4.513]
[1744535286899,1.59381599,594.0,593.02,4.513]
[1744535287104,0.60302418,593.99,593.02,4.513]
[1744535287405,0.3097462,593.98,593.02,4.513]
[1744535288804,1.28407166,594.0,593.02,4.513]
[1744535288999,0.29328232,593.97,593.02,4.513]
[1744535289198,0.30974691,593.96,593.02,4.513]
[1744535292104,0.30974691,593.95,593.02,4.513]
[1744535292305,0.30974691,594.0,593.02,4.513]
[1744535292503,0.30974691,593.99,593.02,4.513]
[1744535292703,0.30974691,593.98,593.02,4.513]
[1744535293005,0.30974691,593.97,593.02,4.513]
[1744535293305,0.30974691,593.96,593.02,4.513]
[1744535293505,0.30974691,593.97,593.02,4.513]
[1744535293706,0.30975019,593.96,593.02,4.513]
[1744535293906,0.30975019,593.97,593.02,4.513]
[1744535294106,0.30975019,593.96,593.02,4.513]
[1744535294307,0.30975019,593.97,593.02,4.513]
[1744535294509,0.30975019,593.96,593.02,4.513]
[1744535294709,0.30975019,593.95,593.02,4.513]
[1744535294902,0.30975019,593.97,593.02,4.513]
[1744535295106,0.30975019,593.96,593.02,4.513]
[1744535295301,0.29328355,593.95,593.02,4.513]
[1744535295506,0.30975019,593.94,593.02,4.513]
[1744535298104,0.29328726,593.93,593.02,4.513]
[1744535298506,0.30975019,593.92,593.02,4.513]
[1744535301112,0.30975019,594.0,593.02,4.513]
[1744535301306,0.30975019,593.99,593.02,4.513]
[1744535301512,0.30975019,594.0,593.02,4.513]
[1744535301711,0.30974662,593.99,593.02,4.513]
[1744535302012,0.30974662,593.98,593.02,4.513]
[1744535302214,0.29327985,593.98,593.02,4.513]
[1744535302509,0.30974662,593.97,593.02,4.513]
[1744535304114,0.30974662,593.96,593.02,4.513]
[1744535304314,0.30974662,594.0,593.02,4.513]
[1744535304514,0.30974662,593.99,593.02,4.513]
[1744535304710,0.30974662,594.0,593.02,4.513]
[1744535304916,0.30974662,593.99,593.02,4.513]
[1744535305116,0.29327985,593.98,593.02,4.513]
[1744535305416,0.30974662,593.97,593.02,4.513]
[1744535310014,0.60303017,593.96,593.02,4.513]
[1744535310315,0.30974662,593.95,593.02,4.513]
[1744535313123,0.60303265,593.94,593.02,4.513]
[1744535313321,0.30974662,593.93,593.02,4.513]
[1744535314319,0.29328603,593.94,593.02,4.513]
[1744535314521,0.30974554,593.93,593.02,4.513]
[1744535316123,0.60303404,593.92,593.02,4.513]
[1744535316324,0.30974554,593.91,593.02,4.513]
[1744535317525,0.2932885,593.92,593.02,4.513]
[1744535317727,0.30975322,593.9,593.02,4.513]
[1744535317926,0.2932885,593.92,593.02,4.513]
[1744535317927,0.30975322,593.89,593.02,4.513]
[1744535318127,0.30975322,593.88,593.02,4.513]
[1744535318327,0.30975322,593.91,593.02,4.513]
[1744535318527,0.30975322,593.9,593.02,4.513]
[1744535318727,0.30975322,593.91,593.02,4.513]
[1744535318925,0.30975322,593.9,593.02,4.513]
[1744535319124,1.28407166,593.99,593.02,4.513]
[1744535319323,0.30975313,593.98,593.02,4.513]
[1744535320227,0.29328232,593.97,593.02,4.513]
[1744535320430,0.30975313,593.96,593.02,4.513]
[1744535320630,0.29328232,593.97,593.02,4.513]
[1744535320844,0.30975077,593.96,593.02,4.513]
[1744535321630,0.29328232,593.97,593.02,4.513]
[1744535321826,1.28407166,594.0,593.02,4.513]
[1744535323134,0.29325637,593.99,593.02,4.513]
[1744535324836,0.33669466,594.01,593.02,4.513]
[1744535325030,0.3097021,594.0,593.02,4.513]
[1744535325334,0.29325513,593.98,593.02,4.513]
[1744535327933,0.33669466,594.01,593.02,4.513]
[1744535328837,0.30968855,594.0,593.02,4.513]
[1744535329133,0.6028745,594.0,593.02,4.513]
[1744535329336,0.29318595,594.0,593.02,4.513]
[1744535331137,0.30970516,593.99,593.02,4.513]
[1744535331837,0.30970873,593.98,593.02,4.513]
[1744535332039,0.30970873,593.99,593.02,4.513]
[1744535334131,0.30970873,594.0,593.02,4.513]
[1744535334636,0.33669466,594.01,593.02,4.513]
[1744535334837,0.30970645,593.99,593.02,4.513]
[1744535335033,0.30970645,593.98,593.02,4.513]
[1744535335338,0.30970645,593.97,593.02,4.513]
[1744535335540,0.30970645,593.99,593.02,4.513]
[1744535335740,0.30970645,593.98,593.02,4.513]
[1744535336037,0.30970645,593.97,593.02,4.513]
[1744535336341,0.30970645,593.99,593.02,4.513]
[1744535336642,0.30971012,593.98,593.02,4.513]
[1744535336837,0.30971012,593.99,593.02,4.513]
[1744535337236,0.30971012,593.98,593.02,4.513]
[1744535337437,0.29325637,593.98,593.02,4.513]
[1744535337640,0.30971012,593.97,593.02,4.513]
[1744535340043,0.29325884,593.97,593.02,4.513]
[1744535340242,0.30971012,593.96,593.02,4.513]
[1744535340645,0.29325884,593.97,593.02,4.513]
[1744535340943,0.30973861,593.96,593.02,4.513]
[1744535343343,0.30973861,594.0,593.02,4.513]
[1744535344143,0.29327243,593.99,593.02,4.513]
[1744535344344,0.30973861,593.98,593.02,4.513]
[1744535346146,0.30973861,594.0,593.02,4.513]
[1744535347149,0.29327243,593.99,593.02,4.513]
[1744535347348,0.30973861,593.98,593.02,4.513]
[1744535349249,0.30973861,594.0,593.02,4.513]
[1744535350154,0.29327243,593.99,593.02,4.513]
[1744535350348,0.30973861,593.98,593.02,4.513]
[1744535352054,0.30973861,594.0,593.02,4.513]
[1744535353256,0.29327243,593.99,593.02,4.513]
[1744535353557,0.30973861,593.98,593.02,4.513]
[1744535355159,0.2932749,593.97,593.02,4.513]
[1744535355458,0.30973861,593.96,593.02,4.513]
[1744535356759,0.2932749,593.97,593.02,4.513]
[1744535357058,0.30975675,593.96,593.02,4.513]
[1744535358159,0.30975675,594.0,593.02,4.513]
[1744535359158,0.29327243,593.99,593.02,4.513]
[1744535359359,0.30975675,593.98,593.02,4.513]
[1744535361559,0.29327243,593.99,593.02,4.513]
[1744535361758,0.30975863,593.98,593.02,4.513]
[1744535364158,0.30975863,594.0,593.02,4.513]
[1744535364358,0.30975863,593.99,593.02,4.513]
[1744535364559,0.30975863,594.0,593.02,4.513]
[1744535364755,0.30975863,593.99,593.02,4.513]
[1744535364959,0.30975863,593.98,593.02,4.513]
[1744535365256,0.30975863,593.97,593.02,4.513]
[1744535367154,0.30975863,594.0,593.02,4.513]
[1744535367357,0.30975863,593.99,593.02,4.513]